bitfinex/quotes_BTCUSD_20260310
["timestamp","ask_amount","ask_price","bid_price","bid_amount"]
[1773167635562,0.02210705,70286.0,70269.0,0.0002]
[1773167635968,0.03,70285.0,70269.0,0.0002]
[1773167636803,0.03,70283.0,70269.0,0.0002]
[1773167637207,0.03,70283.0,70270.0,0.00152]
[1773167637413,0.05248679,70283.0,70271.0,0.0711531]
[1773167638179,0.00152,70286.0,70271.0,0.0711531]
[1773167638383,0.00152,70287.0,70271.0,0.0711531]
[1773167639319,0.01124339,70293.0,70271.0,0.0711531]
[1773167639516,0.00152,70299.0,70271.0,0.0711531]
[1773167639724,0.00152,70298.0,70272.0,0.00152]
[1773167640085,0.00152,70298.0,70271.0,0.0711531]
[1773167640242,0.00562,70320.0,70290.0,0.16173942]
[1773167640462,0.00562,70320.0,70291.0,0.17427881]
[1773167641209,0.00562,70320.0,70291.0,0.17275881]
[1773167641210,0.00672607,70319.0,70291.0,0.17275881]
[1773167641378,0.03,70317.0,70293.0,0.07113083]
[1773167641580,0.03,70317.0,70294.0,0.00152]
[1773167641781,0.00672607,70316.0,70295.0,0.00152]
[1773167642389,0.00672607,70314.0,70296.0,0.00152]
[1773167643139,0.00152,70315.0,70293.0,0.07113083]
[1773167643140,0.00152,70315.0,70297.0,0.00152]
[1773167643354,0.0003874,70330.0,70300.0,0.16173942]
[1773167643573,0.00037537,70325.0,70301.0,0.07112274]
[1773167643787,0.0003874,70330.0,70301.0,0.07112274]
[1773167643788,0.05919516,70330.0,70301.0,0.07112274]
[1773167644006,0.03,70328.0,70302.0,0.00152]
[1773167644333,0.03,70328.0,70301.0,0.07149811]
[1773167644531,0.00022001,70322.0,70303.0,0.00152]
[1773167645165,0.00022001,70322.0,70304.0,0.00048]
[1773167645482,0.00022001,70322.0,70305.0,0.07111869]
[1773167646398,0.02891259,70322.0,70305.0,0.07111869]
[1773167646600,0.05869258,70319.0,70306.0,0.00152]
[1773167646804,0.03,70319.0,70304.0,0.002]
[1773167647001,0.005,70318.0,70304.0,0.07311925]
[1773167647362,0.005,70318.0,70305.0,0.001]
[1773167647574,0.03,70339.0,70308.0,0.16173942]
[1773167647696,0.005,70338.0,70306.0,0.07111768]
[1773167648553,0.00152,70337.0,70306.0,0.07111768]
[1773167648754,0.00152,70337.0,70306.0,0.07211768]
[1773167649011,0.07107788,70346.0,70306.0,0.07211768]
[1773167649012,0.00045001,70350.0,70321.0,0.17225652]
[1773167649263,0.00045001,70350.0,70327.0,0.16173942]
[1773167649434,0.03,70360.0,70327.0,0.16173942]
[1773167649435,0.03,70360.0,70328.0,0.07109543]
[1773167649636,0.0109003,70364.0,70340.0,0.16173942]
[1773167649835,0.005,70372.0,70340.0,0.16173942]
[1773167649836,0.00152,70367.0,70341.0,0.00152]
[1773167650563,0.00033262,70365.0,70341.0,0.00152]
[1773167650968,0.03,70368.0,70342.0,0.17093532]
[1773167651170,0.03,70368.0,70342.0,0.17104793]
[1773167651372,0.005,70368.0,70343.0,0.00152]
[1773167651669,0.005,70368.0,70344.0,0.07107926]
[1773167652751,0.03,70367.0,70344.0,0.07107926]
[1773167652930,0.00022001,70365.0,70345.0,0.00152]
[1773167653128,0.00022001,70373.0,70350.0,0.16173942]
[1773167653368,0.005,70378.0,70350.0,0.16173942]
[1773167653561,0.005,70378.0,70346.0,0.07107724]
[1773167653739,0.07278333,70380.0,70346.0,0.07107724]
[1773167653740,0.00174001,70380.0,70351.0,0.00152]
[1773167653983,0.00022001,70380.0,70360.0,0.16173942]
[1773167654167,0.00022001,70380.0,70361.0,0.00152]
[1773167654367,0.00022001,70380.0,70362.0,0.00152]
[1773167654611,0.00022001,70380.0,70363.0,0.00152]
[1773167654792,0.00022001,70380.0,70363.0,0.00137201]
[1773167654995,0.005,70379.0,70362.0,0.00152]
[1773167655315,0.005,70379.0,70350.0,0.00023]
[1773167655316,0.005,70379.0,70361.0,0.00152]
[1773167655471,0.005,70379.0,70363.0,0.07106007]
[1773167656723,0.035,70379.0,70363.0,0.07106007]
[1773167657019,0.03,70379.0,70363.0,0.07106007]
[1773167657423,0.1010445,70379.0,70360.0,0.00152]
[1773167657571,0.03,70378.0,70361.0,0.07106209]
[1773167657772,0.03,70378.0,70362.0,0.02758017]
[1773167658702,0.00022001,70380.0,70362.0,0.02758017]
[1773167659721,0.00022001,70380.0,70363.0,0.07106007]
[1773167659917,0.03,70379.0,70363.0,0.09863003]
[1773167660794,0.03,70379.0,70363.0,0.07106007]
[1773167660995,0.00022001,70380.0,70355.0,0.09911804]
[1773167660996,0.26300264,70380.0,70355.0,0.09911804]
[1773167661198,0.00022001,70378.0,70355.0,0.07154802]
[1773167661487,0.00022001,70378.0,70355.0,0.07154809]
[1773167662102,0.03,70376.0,70355.0,0.07140013]
[1773167662656,0.03,70376.0,70356.0,0.02909234]
[1773167662850,0.00152,70375.0,70356.0,0.02909234]
[1773167663052,0.03152,70375.0,70355.0,0.07139955]
[1773167663677,0.03,70375.0,70356.0,0.03682202]
[1773167664055,0.03,70374.0,70357.0,0.07106613]
[1773167664252,0.03,70374.0,70358.0,0.03682202]
[1773167665078,0.03,70373.0,70359.0,0.00152]
[1773167665580,0.03,70373.0,70358.0,0.03682202]
[1773167665778,0.00022001,70378.0,70357.0,0.07106613]
[1773167665779,0.00022001,70378.0,70360.0,0.03681515]
[1773167665981,0.00022001,70380.0,70360.0,0.03681515]
[1773167665982,0.07103256,70391.0,70360.0,0.03681515]
[1773167665983,0.00152,70397.0,70371.0,0.03681515]
[1773167666188,0.00152,70397.0,70373.0,0.03681515]
[1773167666524,0.07123825,70405.0,70372.0,0.07257098]
[1773167666525,0.03,70401.0,70380.0,0.16173942]
[1773167666794,0.07123822,70405.0,70382.0,0.03674116]
[1773167666958,0.00022001,70405.0,70382.0,0.03674116]
[1773167667155,0.0059953,70404.0,70382.0,0.03674116]
[1773167667675,0.03,70403.0,70382.0,0.03675043]
[1773167667854,0.03,70403.0,70379.0,0.00152]
[1773167668053,0.0710207,70402.0,70379.0,0.00107613]
[1773167668299,0.03152,70401.0,70380.0,0.0725629]
[1773167668619,0.03152,70401.0,70379.0,0.0710429]
[1773167668620,0.03152,70401.0,70355.0,0.10814956]
[1773167668621,0.03,70389.0,70355.0,0.10814956]
[1773167668748,0.32370884,70400.0,70355.0,0.00033199]
[1773167668749,0.03,70380.0,70355.0,0.00033199]
[1773167668990,0.03,70380.0,70353.0,0.07106955]
[1773167668991,0.03,70369.0,70350.0,0.00023]
[1773167669189,0.00152,70368.0,70350.0,0.0713031]
[1773167669713,0.00152,70368.0,70350.0,0.07130295]
[1773167669920,0.00152,70368.0,70350.0,0.07141575]
[1773167670123,0.03,70368.0,70350.0,0.07141575]
[1773167670305,0.03,70368.0,70352.0,0.03675195]
[1773167670506,0.07103887,70385.0,70352.0,0.03675195]
[1773167670722,0.00152,70384.0,70352.0,0.03675195]
[1773167670916,0.00152,70384.0,70355.0,0.001]
[1773167671117,0.03152,70384.0,70354.0,0.03676249]
[1773167671319,0.03152,70384.0,70355.0,0.00152]
[1773167671735,0.03152,70384.0,70355.0,0.03828249]
[1773167672113,0.07103139,70392.0,70355.0,0.03828249]
[1773167672114,0.03,70385.0,70356.0,0.07106714]
[1773167672335,0.00022001,70378.0,70357.0,0.03676249]
[1773167672537,0.03,70385.0,70361.0,0.03676249]
[1773167673106,0.03,70384.0,70361.0,0.03676249]
[1773167673510,0.03,70384.0,70362.0,0.00152]
[1773167673818,0.03,70384.0,70363.0,0.03676155]
[1773167674017,0.03,70383.0,70363.0,0.03676155]
[1773167674222,0.10104016,70383.0,70358.0,0.00152]
[1773167674421,0.10104016,70383.0,70357.0,0.00152]
[1773167674422,0.03,70379.0,70357.0,0.00152]
[1773167674650,0.03,70379.0,70358.0,0.00152]
[1773167675025,0.00152,70378.0,70356.0,0.07106714]
[1773167675430,0.03152,70378.0,70356.0,0.07106714]
[1773167675839,0.03,70378.0,70356.0,0.07106714]
[1773167676030,0.03152,70378.0,70357.0,0.03827459]
[1773167676235,0.03152,70378.0,70358.0,0.07106512]
[1773167676431,0.07104523,70378.0,70358.0,0.07106512]
[1773167676632,0.03152,70377.0,70358.0,0.07106512]
[1773167677171,0.00152,70379.0,70358.0,0.07106512]
[1773167677319,0.00022001,70386.0,70361.0,0.03674884]
[1773167677730,0.00022001,70386.0,70363.0,0.03674884]
[1773167678171,0.03,70384.0,70364.0,0.00152]
[1773167678349,0.03,70384.0,70365.0,0.07105805]
[1773167678551,0.00022001,70386.0,70366.0,0.03674884]
[1773167678769,0.00022001,70393.0,70366.0,0.03674884]
[1773167679364,0.03023,70400.0,70371.0,0.02178776]
[1773167680283,0.03,70399.0,70372.0,0.07105098]
[1773167680462,0.03,70399.0,70373.0,0.02330776]
[1773167681289,0.03,70398.0,70373.0,0.02330776]
[1773167681499,0.00022001,70386.0,70373.0,0.02330776]
[1773167681656,0.0303753,70398.0,70373.0,0.02330776]
[1773167682061,0.0303753,70398.0,70373.0,0.02430776]
[1773167682393,0.00023,70400.0,70373.0,0.02430776]
[1773167682394,0.00562,70404.0,70381.0,0.02194305]
[1773167682607,0.00562,70404.0,70374.0,0.07104896]
[1773167682608,0.0057325,70404.0,70383.0,0.02194305]
[1773167682784,0.0057325,70404.0,70385.0,0.02194305]
[1773167683300,0.0057325,70404.0,70386.0,0.00152]
[1773167683597,0.0057325,70404.0,70385.0,0.02194305]
[1773167683809,0.0057325,70404.0,70386.0,0.00152]
[1773167684407,0.0057325,70404.0,70387.0,0.07103584]
[1773167685220,0.00022001,70405.0,70391.0,0.02501502]
[1773167685395,0.00022001,70405.0,70391.0,0.02497955]
[1773167685598,0.00022001,70405.0,70392.0,0.00152]
[1773167686142,0.03022001,70405.0,70392.0,0.00152]
[1773167686359,0.03022001,70405.0,70391.0,0.0001125]
[1773167686360,0.102758,70405.0,70391.0,0.0001125]
[1773167687308,0.03,70404.0,70391.0,0.0001125]
[1773167687918,0.03,70404.0,70383.0,0.00152]
[1773167688118,0.03011239,70404.0,70381.0,0.07104173]
[1773167688339,0.03,70402.0,70381.0,0.07104173]
[1773167688534,0.03,70402.0,70377.0,0.00152]
[1773167688920,0.03,70402.0,70376.0,0.07666632]
[1773167689119,0.03,70402.0,70377.0,0.00152]
[1773167689315,0.03,70402.0,70376.0,0.07666632]
[1773167689753,0.03,70402.0,70376.0,0.07818632]
[1773167690368,0.03,70402.0,70376.0,0.00714]
[1773167690576,0.03,70402.0,70375.0,0.07127705]
[1773167690577,0.19149644,70400.0,70375.0,0.07127705]
[1773167690975,0.03,70400.0,70375.0,0.00023]
[1773167691382,0.19149644,70400.0,70375.0,0.00023]
[1773167691706,0.00152,70399.0,70376.0,0.02387146]
[1773167691858,0.00152,70399.0,70377.0,0.00152]
[1773167692779,0.03,70397.0,70378.0,0.07104492]
[1773167692981,0.03,70397.0,70378.0,0.07030535]
[1773167694126,0.03152,70396.0,70379.0,0.02386953]
[1773167694801,0.03152,70396.0,70380.0,0.0710429]
[1773167695002,0.03,70395.0,70381.0,0.02538953]
[1773167695235,0.03,70395.0,70381.0,0.02524164]
[1773167695811,0.0059524,70404.0,70381.0,0.02524164]
[1773167696018,0.00174001,70412.0,70381.0,0.02524164]
[1773167696217,0.00174001,70412.0,70390.0,0.16149644]
[1773167696417,0.00174001,70412.0,70391.0,0.02516646]
[1773167696618,0.00174001,70412.0,70391.0,0.02364646]
[1773167696819,0.00174001,70412.0,70393.0,0.07102978]
[1773167696820,0.00022001,70412.0,70393.0,0.07102978]
[1773167697024,0.00022001,70412.0,70394.0,0.01573615]
[1773167697392,0.03022001,70412.0,70394.0,0.01573615]
[1773167698025,0.03022001,70412.0,70395.0,0.00152]
[1773167698345,0.07122774,70425.0,70396.0,0.01573615]
[1773167698644,0.03,70418.0,70396.0,0.01573615]
[1773167698846,0.03,70418.0,70397.0,0.07102575]
[1773167699044,0.10100478,70418.0,70398.0,0.00152]
[1773167699288,0.00022001,70404.0,70384.0,0.01577169]
[1773167699462,0.00174001,70404.0,70384.0,0.01729169]
[1773167699679,0.00022001,70404.0,70384.0,0.01729169]
[1773167699876,0.00152,70403.0,70384.0,0.01729169]
[1773167700028,0.00022001,70412.0,70384.0,0.01729169]
[1773167700236,0.00152,70410.0,70384.0,0.01729169]
[1773167700450,0.00022001,70412.0,70384.0,0.01729169]
[1773167700451,0.00022001,70412.0,70391.0,0.01577169]
[1773167700690,0.00022001,70412.0,70390.0,0.16149644]
[1773167700691,0.03,70416.0,70393.0,0.01569776]
[1773167700897,0.00562,70432.0,70403.0,0.01569788]
[1773167701059,0.00562,70432.0,70405.0,0.01569788]
[1773167701249,0.00152,70428.0,70405.0,0.01569788]
[1773167701453,0.00562,70432.0,70428.0,0.00175]
[1773167701656,0.00023,70450.0,70435.0,0.00408687]
[1773167701657,0.00152,70437.0,70435.0,0.00408687]
[1773167701917,0.00152,70437.0,70414.0,0.1694904]
[1773167702079,0.00152,70436.0,70418.0,0.00152]
[1773167702279,0.07120328,70450.0,70420.0,0.16149644]
[1773167702450,0.00152,70447.0,70421.0,0.01569788]
[1773167702653,0.00152,70451.0,70421.0,0.01569788]
[1773167702859,0.00152,70451.0,70420.0,0.16156033]
[1773167702860,0.00562,70460.0,70441.0,0.1694904]
[1773167703054,0.00562,70460.0,70442.0,0.01724879]
[1773167703877,0.00562,70460.0,70443.0,0.00152]
[1773167704208,0.00573242,70460.0,70443.0,0.00152]
[1773167704418,0.0005122,70466.0,70444.0,0.01572879]
[1773167704730,0.0005122,70466.0,70444.0,0.01584121]
[1773167704931,0.0005122,70466.0,70446.0,0.01578049]
[1773167705334,0.0005122,70466.0,70457.0,0.00048]
[1773167705850,0.03,70465.0,70457.0,0.00048]
[1773167705984,0.03,70465.0,70437.0,0.07098481]
[1773167705985,0.00152,70464.0,70437.0,0.00152]
[1773167706185,0.00163238,70464.0,70437.0,0.00152]
[1773167706642,0.03,70459.0,70432.0,0.00562]
[1773167706873,0.03,70449.0,70432.0,0.00562]
[1773167707051,0.03,70447.0,70432.0,0.00562]
[1773167707361,0.03,70447.0,70425.0,0.00023]
[1773167707561,0.07249433,70448.0,70412.0,0.09140216]
[1773167707562,0.03,70432.0,70412.0,0.09140216]
[1773167707760,0.00152,70431.0,70412.0,0.07949122]
[1773167708359,0.00152,70431.0,70406.0,0.00036706]
[1773167708360,0.03,70421.0,70406.0,0.00036706]
[1773167708572,0.00152,70420.0,70406.0,0.00036706]
[1773167708790,0.00152,70420.0,70406.0,6.389e-05]
[1773167708791,0.16149644,70410.0,70406.0,6.389e-05]
[1773167709037,2.224421,70419.0,70373.0,0.07124921]
[1773167709038,0.10102272,70400.0,70373.0,0.0002]
[1773167709222,0.00152,70399.0,70381.0,0.0005753]
[1773167709467,0.00152,70399.0,70375.0,0.07127701]
[1773167709468,0.00152,70399.0,70376.0,0.00363557]
[1773167709469,0.16149644,70391.0,70376.0,0.00363557]
[1773167709647,0.07102272,70402.0,70376.0,0.00363557]
[1773167709649,0.00562,70404.0,70376.0,0.00011239]
[1773167709863,0.00152,70403.0,70376.0,0.00011239]
[1773167710024,0.00152,70402.0,70377.0,0.01263845]
[1773167710224,0.00152,70401.0,70377.0,0.01263845]
[1773167710426,0.00152,70401.0,70376.0,0.00011239]
[1773167710427,0.16149644,70400.0,70376.0,0.00011239]
[1773167710672,0.001,70391.0,70376.0,0.00011239]
[1773167710874,0.00152,70390.0,70376.0,0.00011239]
[1773167711075,0.03,70388.0,70376.0,0.00011239]
[1773167711649,0.03,70382.0,70373.0,1e-08]
[1773167711849,0.00152,70381.0,70373.0,1e-08]
[1773167712097,0.00152,70381.0,70361.0,0.0002]
[1773167712633,0.03,70381.0,70361.0,0.0002]
[1773167712906,0.03,70381.0,70362.0,0.01305304]
[1773167712907,0.00152,70380.0,70362.0,0.01305304]
[1773167713062,0.00152,70380.0,70363.0,0.07106007]
[1773167713462,0.00152,70380.0,70362.0,0.07106007]
[1773167713672,0.00152,70380.0,70361.0,0.0002]
[1773167713673,0.03,70379.0,70361.0,0.0002]
[1773167714072,0.03,70379.0,70376.0,0.0002]
[1773167714269,0.03,70379.0,70361.0,0.07126171]
[1773167714596,0.03,70378.0,70368.0,0.0002]
[1773167714802,0.00152,70382.0,70368.0,0.0002]
[1773167714956,0.07125281,70400.0,70368.0,0.0002]
[1773167714957,0.00152,70388.0,70371.0,0.01867616]
[1773167715159,0.07125373,70400.0,70373.0,0.01867616]
[1773167715160,0.00023,70400.0,70373.0,0.01867616]
[1773167715381,0.00152,70399.0,70369.0,0.07253401]
[1773167715547,0.00152,70399.0,70369.0,0.07105401]
[1773167715760,0.03152,70399.0,70368.0,0.00057438]
[1773167715954,0.03,70379.0,70361.0,0.0002]
[1773167716195,0.16149644,70371.0,70353.0,1e-08]
[1773167716398,0.00152,70378.0,70343.0,1e-08]
[1773167716399,0.03,70362.0,70343.0,1e-08]
[1773167716571,0.00152,70361.0,70343.0,1e-08]
[1773167716779,0.03011223,70362.0,70343.0,1e-08]
[1773167716985,0.03,70359.0,70343.0,1e-08]
[1773167717772,0.00152,70358.0,70343.0,1e-08]
[1773167719015,0.03,70356.0,70343.0,1e-08]
[1773167719440,0.00152,70355.0,70343.0,1e-08]
[1773167719641,0.07106613,70359.0,70343.0,1e-08]
[1773167719642,0.07104896,70374.0,70343.0,1e-08]
[1773167719842,0.00152,70373.0,70344.0,0.01167207]
[1773167720079,0.001,70358.0,70344.0,0.01315207]
[1773167720283,0.03,70374.0,70355.0,0.00048]
[1773167720497,0.00152,70368.0,70355.0,0.00048]
[1773167720879,0.03,70374.0,70355.0,0.00048]
[1773167720880,0.00152,70373.0,70356.0,0.01167207]
[1773167721112,0.03152,70373.0,70357.0,0.07106613]
[1773167721316,0.03152,70373.0,70358.0,0.01158154]
[1773167721521,0.00023,70375.0,70358.0,0.01158154]
[1773167722154,0.03023,70375.0,70358.0,0.01158154]
[1773167722572,0.00562,70376.0,70358.0,0.01158154]
[1773167722947,0.00152,70379.0,70358.0,0.01158154]
[1773167723096,0.10256465,70379.0,70359.0,0.07106411]
[1773167723300,0.03152,70379.0,70359.0,0.07106411]
[1773167723497,0.00022001,70373.0,70359.0,0.07106411]
[1773167723807,0.00022001,70373.0,70357.0,0.08261271]
[1773167724128,0.00022001,70373.0,70355.0,0.07154785]
[1773167724334,0.00022001,70373.0,70355.0,0.00048]
[1773167724530,0.00022001,70373.0,70343.0,0.07119194]
[1773167724531,0.03,70367.0,70343.0,0.07119194]
[1773167724734,0.00152,70366.0,70343.0,0.07119194]
[1773167724902,0.00152,70365.0,70343.0,0.07119194]
[1773167725106,0.03,70364.0,70343.0,0.07119194]
[1773167725414,0.03,70364.0,70344.0,0.01149796]
[1773167725633,0.00152,70374.0,70344.0,0.01149796]
[1773167726029,0.03,70372.0,70345.0,0.00148]
[1773167726223,0.03,70372.0,70346.0,0.01149796]
[1773167726859,0.03,70372.0,70348.0,0.01149796]
[1773167727039,0.03,70370.0,70349.0,0.07107421]
[1773167727451,0.03,70370.0,70346.0,0.07107646]
[1773167727899,0.03,70370.0,70347.0,0.0113912]
[1773167728088,0.0710511,70372.0,70347.0,0.0113912]
[1773167728089,0.00152,70369.0,70347.0,0.0113912]
[1773167729201,0.10257461,70369.0,70348.0,0.07107522]
[1773167729454,0.10257461,70369.0,70343.0,0.00011224]
[1773167729455,0.03,70359.0,70343.0,0.00011224]
[1773167729677,0.00152,70358.0,70343.0,0.07119218]
[1773167730022,0.00152,70358.0,70344.0,0.07107926]
[1773167730223,0.00152,70358.0,70343.0,0.0711915]
[1773167730428,0.00152,70358.0,70343.0,0.00011224]
[1773167730429,0.03152,70358.0,70343.0,0.00011224]
[1773167730632,0.03,70352.0,70335.0,0.0002]
[1773167730951,0.03,70352.0,70304.0,0.07159966]
[1773167730952,1.451834,70343.0,70304.0,0.07159966]
[1773167731170,0.03,70329.0,70304.0,0.07159966]
[1773167731333,0.17056,70351.0,70311.0,0.011469]
[1773167731510,0.00152,70347.0,70313.0,0.011469]
[1773167731722,0.07669549,70348.0,70313.0,0.011469]
[1773167731723,0.00152,70346.0,70313.0,0.011469]
[1773167732335,0.00163244,70346.0,70315.0,0.011469]
[1773167732755,0.00163244,70346.0,70317.0,0.011469]
[1773167733066,0.00163244,70346.0,70319.0,0.02031091]
[1773167733240,0.03,70345.0,70322.0,0.02031091]
[1773167733628,0.03,70345.0,70317.0,0.07110565]
[1773167733868,0.03,70345.0,70310.0,0.00152]
[1773167733869,0.03,70345.0,70312.0,0.0711111]
[1773167734027,0.03,70339.0,70311.0,0.07111262]
[1773167734218,0.03,70339.0,70307.0,0.02031091]
[1773167734219,0.00152,70338.0,70307.0,0.09142711]
[1773167734836,0.00152,70338.0,70308.0,0.02031091]
[1773167735045,0.07119009,70346.0,70307.0,0.0711162]
[1773167735046,0.031,70345.0,70311.0,0.02031562]
[1773167735243,0.00152,70347.0,70323.0,0.02031562]
[1773167735501,0.00714,70348.0,70325.0,0.02031562]
[1773167735691,0.00152,70348.0,70325.0,0.02031562]
[1773167736280,0.00023,70350.0,70325.0,0.02031562]
[1773167736605,0.03152,70353.0,70325.0,0.02054562]
[1773167737307,0.03,70352.0,70327.0,0.005]
[1773167737511,0.03,70352.0,70327.0,0.00652]
[1773167737669,0.03,70352.0,70328.0,0.005]
[1773167738313,0.03,70351.0,70328.0,0.005]
[1773167738610,0.00152,70353.0,70327.0,0.00152]
[1773167738611,0.00152,70353.0,70331.0,0.005]
[1773167738773,0.07105704,70366.0,70331.0,0.005]
[1773167738975,0.07257805,70365.0,70331.0,0.005]
[1773167739199,0.03,70340.0,70320.0,0.00562]
[1773167739396,0.03,70340.0,70304.0,0.00048]
[1773167739397,0.03,70329.0,70304.0,0.00048]
[1773167739624,0.03,70329.0,70286.0,0.17163545]
[1773167739625,0.03,70319.0,70284.0,0.07113907]
[1773167739853,0.03,70319.0,70283.0,0.07114067]
[1773167739854,0.00152,70318.0,70296.0,0.00031241]
[1773167741152,0.03,70316.0,70296.0,0.00031241]
[1773167741304,0.03,70316.0,70296.0,1e-08]
[1773167741506,0.07110656,70317.0,70292.0,0.0061301]
[1773167741507,0.03,70309.0,70292.0,1e-08]
[1773167741860,0.00152,70308.0,70292.0,1e-08]
[1773167742445,0.00152,70307.0,70285.0,0.0002]
[1773167742972,0.03011247,70309.0,70285.0,0.07133808]
[1773167743167,0.00152,70306.0,70285.0,0.0002]
[1773167743325,0.03,70304.0,70285.0,0.0002]
[1773167743538,0.03,70304.0,70285.0,0.07133868]
[1773167743736,0.03,70304.0,70288.0,0.0002]
[1773167744162,0.00152,70312.0,70289.0,0.01079881]
[1773167744364,0.00562,70320.0,70292.0,0.01079881]
[1773167744785,0.00562,70320.0,70294.0,0.01079881]
[1773167745387,0.00023,70325.0,70296.0,0.01084519]
[1773167745748,0.00023,70325.0,70295.0,0.07112881]
[1773167745749,0.03023,70325.0,70298.0,0.01084519]
[1773167745954,0.10132859,70325.0,70298.0,0.01084519]
[1773167746265,0.10132859,70325.0,70297.0,0.00152]
[1773167746266,0.00152,70324.0,70299.0,0.00152]
[1773167746454,0.00152,70324.0,70300.0,0.01084519]
[1773167747063,0.00152,70324.0,70302.0,0.01094172]
[1773167747308,0.00152,70326.0,70303.0,0.07112072]
[1773167747617,0.03,70328.0,70304.0,0.01094172]
[1773167747762,0.00152,70332.0,70304.0,0.01094172]
[1773167747966,0.00152,70331.0,70306.0,0.01094172]
[1773167749208,0.03,70329.0,70301.0,0.01103382]
[1773167749423,0.03,70327.0,70302.0,0.07112173]
[1773167749600,0.03,70327.0,70303.0,0.01103382]
[1773167750435,0.07109543,70331.0,70303.0,0.01103382]
[1773167750436,0.00152,70333.0,70303.0,0.01103382]
[1773167750585,0.07108533,70338.0,70305.0,0.01103382]
[1773167750790,0.07108533,70338.0,70304.0,0.00152]
[1773167750791,0.00152,70337.0,70307.0,0.01103382]
[1773167751539,0.03,70335.0,70311.0,0.01112435]
[1773167751742,0.00152,70334.0,70311.0,0.01112435]
[1773167752311,0.03,70334.0,70311.0,0.01112435]
[1773167752507,0.07108139,70342.0,70311.0,0.01112435]
[1773167752730,0.00152,70340.0,70311.0,0.01112435]
[1773167753144,0.00152,70340.0,70310.0,0.07111363]
[1773167753386,0.00152,70340.0,70311.0,0.01112329]
[1773167753596,0.03,70338.0,70313.0,0.01112329]
[1773167753732,0.03152,70338.0,70313.0,0.01112329]
[1773167753963,0.0003756,70342.0,70313.0,0.01112329]
[1773167754348,0.07145756,70342.0,70313.0,0.01112329]
[1773167754541,0.03,70341.0,70313.0,0.01112329]
[1773167755357,0.03,70341.0,70314.0,0.00152]
[1773167755571,0.03,70341.0,70316.0,0.07110757]
[1773167755572,0.03,70339.0,70316.0,0.07110757]
[1773167756443,0.03,70339.0,70315.0,0.07110858]
[1773167756694,0.03,70338.0,70316.0,0.01121888]
[1773167756890,0.03,70338.0,70316.0,0.01273888]
[1773167757047,0.03,70338.0,70316.0,0.01121888]
[1773167757796,0.03,70336.0,70317.0,0.07110656]
[1773167758209,0.03,70336.0,70308.0,0.07131513]
[1773167758788,0.03,70336.0,70308.0,0.0002]
[1773167759474,0.03,70334.0,70306.0,0.0002]
[1773167759683,0.03,70332.0,70301.0,0.0002]
[1773167759903,0.00152,70331.0,70301.0,0.0002]
[1773167760107,0.00152,70331.0,70301.0,0.07132262]
[1773167760310,0.03,70332.0,70301.0,0.07132262]
[1773167760516,0.03,70332.0,70302.0,0.01266168]
[1773167760517,0.00152,70331.0,70302.0,0.01266168]
[1773167761434,0.00152,70331.0,70303.0,0.00152]
[1773167761637,0.03,70329.0,70304.0,0.08416889]
[1773167762042,0.03,70329.0,70305.0,0.01304919]
[1773167762250,0.03,70329.0,70301.0,0.0002]
[1773167762628,0.07109341,70330.0,70300.0,0.04772568]
[1773167762629,0.00023,70325.0,70300.0,0.04772568]
[1773167763016,0.03023,70325.0,70300.0,0.01307987]
[1773167763176,0.03023,70325.0,70291.0,0.0002]
[1773167763177,0.03023,70325.0,70291.0,0.07133246]
[1773167763417,0.03023,70325.0,70288.0,0.0002]
[1773167763418,0.03,70317.0,70288.0,0.0002]
[1773167763621,0.03,70313.0,70281.0,0.0002]
[1773167763828,0.03,70309.0,70281.0,0.0002]
[1773167764458,0.03,70309.0,70281.0,0.07134269]
[1773167764686,0.03,70309.0,70281.0,0.00031247]
[1773167764887,0.03152,70308.0,70262.0,0.0003876]
[1773167765107,0.03152,70308.0,70253.0,0.07165046]
[1773167765108,0.03,70279.0,70253.0,0.07165046]
[1773167765312,0.00152,70278.0,70253.0,0.00048]
[1773167765727,0.03,70276.0,70253.0,0.00048]
[1773167766085,0.03,70276.0,70253.0,1e-08]
[1773167766289,0.00023,70275.0,70236.0,0.00562]
[1773167766500,0.00023,70275.0,70236.0,1e-08]
[1773167766501,0.03,70268.0,70236.0,1e-08]
[1773167766732,0.03,70259.0,70236.0,1e-08]
[1773167766929,0.00152,70258.0,70236.0,1e-08]
[1773167767176,0.03,70256.0,70236.0,1e-08]
[1773167767421,0.03,70256.0,70220.0,0.00148]
[1773167767422,0.07109067,70275.0,70224.0,0.07120005]
[1773167767423,0.03,70254.0,70224.0,0.07120005]
[1773167767548,0.03,70250.0,70226.0,0.00666857]
[1773167767944,0.07269336,70253.0,70227.0,0.00666857]
[1773167768124,0.00152,70253.0,70238.0,0.00666857]
[1773167768723,0.00152,70253.0,70238.0,0.00704438]
[1773167770149,0.07117235,70254.0,70238.0,0.00704438]
[1773167770354,0.00152,70258.0,70239.0,0.005]
[1773167770618,0.00152,70259.0,70239.0,0.005]
[1773167770748,0.00152,70260.0,70239.0,0.005]
[1773167771353,0.0711612,70263.0,70239.0,0.005]
[1773167771577,0.00152,70266.0,70239.0,0.005]
[1773167771983,0.00152,70266.0,70240.0,0.00152]
[1773167772187,0.00152,70266.0,70236.0,0.07680653]
[1773167772188,0.03,70258.0,70236.0,0.00562]
[1773167772351,0.03,70258.0,70214.0,0.24115098]
[1773167772352,0.00037528,70258.0,70225.0,0.07142963]
[1773167772552,0.00037528,70258.0,70226.0,0.00468977]
[1773167772774,0.00152,70263.0,70225.0,0.07142963]
[1773167772775,0.07116137,70263.0,70231.0,0.00468977]
[1773167773017,0.07115278,70272.0,70241.0,0.00468977]
[1773167773150,0.00152,70276.0,70241.0,0.00468977]
[1773167773151,0.07115209,70274.0,70241.0,0.00468977]
[1773167773356,0.07115209,70274.0,70242.0,0.00468977]
[1773167773357,0.03,70269.0,70242.0,0.00468977]